[Event "Titled Tuesday Blitz January 03 Early 2023"]
[White "Duda, Jan-Krzysztof"]
[Black "Martinez Alcantara, Jose Eduardo"]
[WhiteFideId "1170546"]
[BlackFideId "3805662"]
[WhiteElo "2724"]
[BlackElo "2619"]
[Result "1-0"]
[Round "08"]
[TimeControl "180+2"]
[Date "2023.01.03"]
[WhiteClock "0:00:05"]
[BlackClock "0:00:08"]

1. d4 {[%clk 0:03:00]}  Nf6 {[%clk 0:02:59]} 2. c4 {[%clk 0:03:01]}  e6 {[%clk 0:03:00]} 3. Nf3 {[%clk 0:03:01]}  Bb4+ {[%clk 0:03:00]} 4. Bd2 {[%clk 0:03:01]}  Qe7 {[%clk 0:03:00]} 5. g3 {[%clk 0:02:59]}  Bxd2+ {[%clk 0:03:01]} 6. Nbxd2 {[%clk 0:02:58]}  d6 {[%clk 0:03:01]} 7. Bg2 {[%clk 0:02:58]}  a5 {[%clk 0:03:02]} 8. Nf1 {[%clk 0:02:55]}  e5 {[%clk 0:03:01]} 9. Ne3 {[%clk 0:02:55]}  c6 {[%clk 0:02:57]} 10. Qc2 {[%clk 0:02:47]}  O-O {[%clk 0:02:53]} 11. O-O {[%clk 0:02:44]}  Re8 {[%clk 0:02:53]} 12. Rad1 {[%clk 0:02:41]}  Na6 {[%clk 0:02:53]} 13. b3 {[%clk 0:02:37]}  e4 {[%clk 0:02:50]} 14. Nh4 {[%clk 0:02:21]}  g6 {[%clk 0:02:50]} 15. a3 {[%clk 0:02:13]}  d5 {[%clk 0:02:50]} 16. Qb2 {[%clk 0:02:08]}  Nc7 {[%clk 0:02:34]} 17. Rd2 {[%clk 0:02:07]}  a4 {[%clk 0:02:32]} 18. cxd5 {[%clk 0:01:34]}  Ncxd5 {[%clk 0:02:31]} 19. Nxd5 {[%clk 0:01:20]}  Nxd5 {[%clk 0:02:31]} 20. Bh1 {[%clk 0:01:13]}  axb3 {[%clk 0:02:30]} 21. Ra1 {[%clk 0:01:08]}  e3 {[%clk 0:02:29]} 22. Rd3 {[%clk 0:01:07]}  exf2+ {[%clk 0:02:28]} 23. Kxf2 {[%clk 0:01:08]}  g5 {[%clk 0:02:04]} 24. Nf3 {[%clk 0:01:08]}  g4 {[%clk 0:01:44]} 25. Ne5 {[%clk 0:01:04]}  f6 {[%clk 0:01:43]} 26. Nc4 {[%clk 0:01:00]}  Be6 {[%clk 0:01:39]} 27. Rxb3 {[%clk 0:00:45]}  b5 {[%clk 0:01:40]} 28. Nd2 {[%clk 0:00:44]}  f5 {[%clk 0:01:38]} 29. e3 {[%clk 0:00:39]}  h5 {[%clk 0:01:36]} 30. Rc1 {[%clk 0:00:39]}  Rac8 {[%clk 0:01:32]} 31. Bg2 {[%clk 0:00:30]}  h4 {[%clk 0:01:32]} 32. Qb1 {[%clk 0:00:27]}  Qd6 {[%clk 0:01:26]} 33. Rd3 {[%clk 0:00:23]}  Bf7 {[%clk 0:01:15]} 34. Rc5 {[%clk 0:00:21]}  Nxe3 {[%clk 0:01:03]} 35. Rxe3 {[%clk 0:00:09]}  Qxd4 {[%clk 0:01:03]} 36. Ne4 {[%clk 0:00:09]}  Rxe4 {[%clk 0:00:48]} 37. Bxe4 {[%clk 0:00:10]}  Qxc5 {[%clk 0:00:49]} 38. Qc2 {[%clk 0:00:10]}  Qd4 {[%clk 0:00:32]} 39. Bxf5 {[%clk 0:00:10]}  Rf8 {[%clk 0:00:33]} 40. Qd3 {[%clk 0:00:10]}  Qc5 {[%clk 0:00:28]} 41. Ke1 {[%clk 0:00:06]}  Bc4 {[%clk 0:00:17]} 42. Be6+ {[%clk 0:00:06]}  Kg7 {[%clk 0:00:13]} 43. Bxc4 {[%clk 0:00:04]}  Qxc4 {[%clk 0:00:06]} 44. Re7+ {[%clk 0:00:04]}  Kf6 {[%clk 0:00:05]} 45. Qd6+ {[%clk 0:00:04]}  Kg5 {[%clk 0:00:06]} 46. Rg7+ {[%clk 0:00:03]}  Kf5 {[%clk 0:00:07]} 47. Qxf8+ {[%clk 0:00:02]}  Ke4 {[%clk 0:00:07]} 48. Qf4+ {[%clk 0:00:02]}  Kd3 {[%clk 0:00:06]} 49. Qxc4+ {[%clk 0:00:03]}  bxc4 {[%clk 0:00:07]} 50. Rxg4 {[%clk 0:00:03]}  h3 {[%clk 0:00:07]} 51. Kd1 {[%clk 0:00:04]}  c3 {[%clk 0:00:07]} 52. Kc1 {[%clk 0:00:04]}  Ke3 {[%clk 0:00:08]} 53. Rh4 {[%clk 0:00:05]} 1-0


[Site "https://www.chess.com"]

[Event "Titled Tuesday Blitz January 03 Early 2023"]
[White "Madaminov, Mukhiddin"]
[Black "Zhigalko, Sergei"]
[WhiteFideId "14210703"]
[BlackFideId "13502956"]
[WhiteElo "2422"]
[BlackElo "2572"]
[Result "1/2-1/2"]
[Round "08"]
[TimeControl "180+2"]
[Date "2023.01.03"]
[WhiteClock "0:02:12"]
[BlackClock "0:01:43"]

1. d4 {[%clk 0:03:00]}  Nf6 {[%clk 0:03:00]} 2. Nc3 {[%clk 0:03:00]}  d5 {[%clk 0:02:59]} 3. Bf4 {[%clk 0:03:00]}  a6 {[%clk 0:02:59]} 4. e3 {[%clk 0:03:00]}  b5 {[%clk 0:02:58]} 5. Bd3 {[%clk 0:03:00]}  Bb7 {[%clk 0:02:59]} 6. Nf3 {[%clk 0:02:58]}  e6 {[%clk 0:02:59]} 7. Ne2 {[%clk 0:02:58]}  c5 {[%clk 0:02:58]} 8. c3 {[%clk 0:02:59]}  Nc6 {[%clk 0:02:59]} 9. O-O {[%clk 0:02:59]}  Be7 {[%clk 0:02:59]} 10. Ne5 {[%clk 0:02:59]}  O-O {[%clk 0:02:59]} 11. Ng3 {[%clk 0:02:59]}  Rc8 {[%clk 0:02:54]} 12. Nh5 {[%clk 0:02:55]}  Nxh5 {[%clk 0:02:35]} 13. Qxh5 {[%clk 0:02:55]}  f5 {[%clk 0:02:35]} 14. Nxc6 {[%clk 0:02:54]}  Bxc6 {[%clk 0:02:34]} 15. Be5 {[%clk 0:02:54]}  c4 {[%clk 0:02:29]} 16. Bc2 {[%clk 0:02:50]}  a5 {[%clk 0:02:27]} 17. a3 {[%clk 0:02:49]}  Bd6 {[%clk 0:02:19]} 18. f4 {[%clk 0:02:47]}  Bxe5 {[%clk 0:02:09]} 19. fxe5 {[%clk 0:02:48]}  Be8 {[%clk 0:02:08]} 20. Qh3 {[%clk 0:02:43]}  Rb8 {[%clk 0:02:06]} 21. g4 {[%clk 0:02:35]}  Qg5 {[%clk 0:01:56]} 22. Kh1 {[%clk 0:02:35]}  Bg6 {[%clk 0:01:56]} 23. gxf5 {[%clk 0:02:33]}  Bxf5 {[%clk 0:01:57]} 24. Bxf5 {[%clk 0:02:30]}  Rxf5 {[%clk 0:01:57]} 25. Rxf5 {[%clk 0:02:28]}  Qxf5 {[%clk 0:01:58]} 26. Qxf5 {[%clk 0:02:24]}  exf5 {[%clk 0:01:59]} 27. Kg2 {[%clk 0:02:24]}  Rb6 {[%clk 0:01:55]} 28. h3 {[%clk 0:02:17]}  Kf7 {[%clk 0:01:52]} 29. Kf3 {[%clk 0:02:17]}  Rh6 {[%clk 0:01:51]} 30. Kg3 {[%clk 0:02:17]}  Rg6+ {[%clk 0:01:42]} 31. Kf3 {[%clk 0:02:16]}  Rh6 {[%clk 0:01:42]} 32. Kg3 {[%clk 0:02:16]}  Rg6+ {[%clk 0:01:43]} 33. Kf3 {[%clk 0:02:12]}  Rh6 {[%clk 0:01:43]} 1/2-1/2


[Site "https://www.chess.com"]

[Event "Titled Tuesday Blitz January 03 Early 2023"]
[White "Nakamura, Hikaru"]
[Black "Shimanov, Aleksandr"]
[WhiteFideId "2016192"]
[BlackFideId "4198603"]
[WhiteElo "2775"]
[BlackElo "2581"]
[Result "1-0"]
[Round "08"]
[TimeControl "180+2"]
[Date "2023.01.03"]
[WhiteClock "0:00:47"]
[BlackClock "0:00:04"]

1. e4 {[%clk 0:03:00]}  d5 {[%clk 0:02:57]} 2. exd5 {[%clk 0:03:01]}  Qxd5 {[%clk 0:02:58]} 3. Nc3 {[%clk 0:03:02]}  Qe5+ {[%clk 0:02:58]} 4. Be2 {[%clk 0:03:02]}  Bg4 {[%clk 0:02:59]} 5. d4 {[%clk 0:03:03]}  Bxe2 {[%clk 0:02:59]} 6. Ngxe2 {[%clk 0:03:04]}  Qa5 {[%clk 0:03:00]} 7. b4 {[%clk 0:03:01]}  Qf5 {[%clk 0:03:00]} 8. d5 {[%clk 0:02:56]}  Nf6 {[%clk 0:02:59]} 9. O-O {[%clk 0:02:56]}  g6 {[%clk 0:02:55]} 10. Bf4 {[%clk 0:02:46]}  Qd7 {[%clk 0:02:53]} 11. Be5 {[%clk 0:02:13]}  Bg7 {[%clk 0:02:50]} 12. Qd4 {[%clk 0:02:11]}  O-O {[%clk 0:02:48]} 13. Ne4 {[%clk 0:02:07]}  Qd8 {[%clk 0:02:44]} 14. c4 {[%clk 0:02:06]}  Nbd7 {[%clk 0:02:43]} 15. Nxf6+ {[%clk 0:01:55]}  exf6 {[%clk 0:02:43]} 16. Bg3 {[%clk 0:01:56]}  f5 {[%clk 0:02:42]} 17. Qd3 {[%clk 0:01:55]}  Bxa1 {[%clk 0:02:42]} 18. Rxa1 {[%clk 0:01:55]}  Re8 {[%clk 0:02:43]} 19. h3 {[%clk 0:01:49]}  Qf6 {[%clk 0:02:35]} 20. Rd1 {[%clk 0:01:48]}  Rac8 {[%clk 0:02:28]} 21. c5 {[%clk 0:01:43]}  Re4 {[%clk 0:02:23]} 22. Qb5 {[%clk 0:01:37]}  Rce8 {[%clk 0:02:04]} 23. Qxd7 {[%clk 0:01:22]}  Rxe2 {[%clk 0:01:41]} 24. Qxc7 {[%clk 0:01:20]}  R2e7 {[%clk 0:01:36]} 25. Qd6 {[%clk 0:00:59]}  Qxd6 {[%clk 0:01:34]} 26. Bxd6 {[%clk 0:01:00]}  Re1+ {[%clk 0:01:34]} 27. Rxe1 {[%clk 0:01:00]}  Rxe1+ {[%clk 0:01:35]} 28. Kh2 {[%clk 0:01:01]}  Rd1 {[%clk 0:01:36]} 29. Bb8 {[%clk 0:01:01]}  Rxd5 {[%clk 0:01:24]} 30. Bxa7 {[%clk 0:01:01]}  f6 {[%clk 0:01:09]} 31. b5 {[%clk 0:00:55]}  Kf7 {[%clk 0:00:32]} 32. c6 {[%clk 0:00:50]}  bxc6 {[%clk 0:00:31]} 33. b6 {[%clk 0:00:50]}  Rb5 {[%clk 0:00:31]} 34. a4 {[%clk 0:00:51]}  Rb1 {[%clk 0:00:32]} 35. a5 {[%clk 0:00:51]}  c5 {[%clk 0:00:32]} 36. a6 {[%clk 0:00:51]}  c4 {[%clk 0:00:06]} 37. b7 {[%clk 0:00:51]}  c3 {[%clk 0:00:06]} 38. b8=Q {[%clk 0:00:48]}  Rxb8 {[%clk 0:00:05]} 39. Bxb8 {[%clk 0:00:49]}  g5 {[%clk 0:00:05]} 40. Ba7 {[%clk 0:00:46]}  f4 {[%clk 0:00:04]} 41. Bd4 {[%clk 0:00:46]}  c2 {[%clk 0:00:04]} 42. Bb2 {[%clk 0:00:47]} 1-0


[Site "https://www.chess.com"]

[Event "Titled Tuesday Blitz January 03 Early 2023"]
[White "Fedoseev, Vladimir"]
[Black "Jones, Gawain C B"]
[WhiteFideId "24130737"]
[BlackFideId "409561"]
[WhiteElo "2680"]
[BlackElo "2618"]
[Result "1-0"]
[Round "08"]
[TimeControl "180+2"]
[Date "2023.01.03"]
[WhiteClock "0:00:07"]
[BlackClock "0:00:05"]

1. e4 {[%clk 0:01:41]}  e5 {[%clk 0:02:59]} 2. Nf3 {[%clk 0:01:41]}  Nc6 {[%clk 0:02:59]} 3. Bb5 {[%clk 0:01:40]}  a6 {[%clk 0:02:59]} 4. Ba4 {[%clk 0:01:40]}  Nf6 {[%clk 0:02:59]} 5. O-O {[%clk 0:01:40]}  Bc5 {[%clk 0:02:55]} 6. Bxc6 {[%clk 0:01:38]}  dxc6 {[%clk 0:02:55]} 7. d3 {[%clk 0:01:39]}  Qe7 {[%clk 0:02:48]} 8. Nbd2 {[%clk 0:01:33]}  a5 {[%clk 0:02:38]} 9. Nc4 {[%clk 0:01:32]}  Nd7 {[%clk 0:02:38]} 10. Be3 {[%clk 0:01:29]}  f6 {[%clk 0:02:32]} 11. Re1 {[%clk 0:01:25]}  b5 {[%clk 0:02:15]} 12. Ncd2 {[%clk 0:01:14]}  Bxe3 {[%clk 0:02:03]} 13. Rxe3 {[%clk 0:01:13]}  a4 {[%clk 0:02:03]} 14. d4 {[%clk 0:01:09]}  O-O {[%clk 0:02:01]} 15. c4 {[%clk 0:01:03]}  Bb7 {[%clk 0:01:53]} 16. Qc2 {[%clk 0:01:03]}  b4 {[%clk 0:01:45]} 17. c5 {[%clk 0:00:47]}  exd4 {[%clk 0:01:45]} 18. Qc4+ {[%clk 0:00:47]}  Kh8 {[%clk 0:01:44]} 19. Qxd4 {[%clk 0:00:48]}  Rfb8 {[%clk 0:01:23]} 20. Rc1 {[%clk 0:00:40]}  Ba6 {[%clk 0:01:17]} 21. a3 {[%clk 0:00:33]}  Ne5 {[%clk 0:01:05]} 22. axb4 {[%clk 0:00:28]}  Nd3 {[%clk 0:01:00]} 23. Rxd3 {[%clk 0:00:16]}  Rd8 {[%clk 0:01:00]} 24. Ra3 {[%clk 0:00:16]}  Rxd4 {[%clk 0:00:58]} 25. Nxd4 {[%clk 0:00:17]}  Bb5 {[%clk 0:00:54]} 26. Re1 {[%clk 0:00:16]}  Rd8 {[%clk 0:00:49]} 27. N2f3 {[%clk 0:00:16]}  g6 {[%clk 0:00:43]} 28. h3 {[%clk 0:00:17]}  Rd7 {[%clk 0:00:43]} 29. e5 {[%clk 0:00:17]}  fxe5 {[%clk 0:00:41]} 30. Nxe5 {[%clk 0:00:18]}  Qh4 {[%clk 0:00:27]} 31. Ndf3 {[%clk 0:00:14]}  Qd8 {[%clk 0:00:21]} 32. Nxd7 {[%clk 0:00:13]}  Qxd7 {[%clk 0:00:22]} 33. Rae3 {[%clk 0:00:12]}  Bc4 {[%clk 0:00:20]} 34. Re8+ {[%clk 0:00:12]}  Bg8 {[%clk 0:00:19]} 35. R1e7 {[%clk 0:00:12]}  Qd1+ {[%clk 0:00:14]} 36. Kh2 {[%clk 0:00:12]}  Qc1 {[%clk 0:00:13]} 37. Kg3 {[%clk 0:00:09]}  h6 {[%clk 0:00:02]} 38. h4 {[%clk 0:00:05]}  Qxb2 {[%clk 0:00:01]} 39. Ne5 {[%clk 0:00:05]}  Qc2 {[%clk 0:00:01]} 40. Nf7+ {[%clk 0:00:02]}  Kg7 {[%clk 0:00:01]} 41. Nd8+ {[%clk 0:00:02]}  Kf6 {[%clk 0:00:01]} 42. Re3 {[%clk 0:00:01]}  Qc3 {[%clk 0:00:01]} 43. Rxc3 {[%clk 0:00:01]}  Bb3 {[%clk 0:00:02]} 44. Rf3+ {[%clk 0:00:02]}  Kg7 {[%clk 0:00:02]} 45. Rxb3 {[%clk 0:00:03]}  axb3 {[%clk 0:00:02]} 46. Re3 {[%clk 0:00:04]}  b2 {[%clk 0:00:03]} 47. Rb3 {[%clk 0:00:04]}  Kf6 {[%clk 0:00:04]} 48. Rxb2 {[%clk 0:00:04]}  Ke5 {[%clk 0:00:04]} 49. Rd2 {[%clk 0:00:05]}  Ke4 {[%clk 0:00:04]} 50. Nxc6 {[%clk 0:00:06]}  g5 {[%clk 0:00:05]} 51. Rd4+ {[%clk 0:00:06]}  Kf5 {[%clk 0:00:05]} 52. h5 {[%clk 0:00:07]} 1-0


[Site "https://www.chess.com"]

[Event "Titled Tuesday Blitz January 03 Early 2023"]
[White "Vokhidov, Shamsiddin"]
[Black "Sanal, Vahap"]
[WhiteFideId "14204223"]
[BlackFideId "6300545"]
[WhiteElo "2586"]
[BlackElo "2600"]
[Result "1-0"]
[Round "08"]
[TimeControl "180+2"]
[Date "2023.01.03"]
[WhiteClock "0:01:19"]
[BlackClock "0:00:12"]

1. e4 {[%clk 0:03:00]}  d6 {[%clk 0:02:59]} 2. d4 {[%clk 0:03:00]}  Nf6 {[%clk 0:02:59]} 3. Nc3 {[%clk 0:03:01]}  e5 {[%clk 0:02:59]} 4. Nf3 {[%clk 0:02:59]}  Nbd7 {[%clk 0:02:59]} 5. Bc4 {[%clk 0:02:59]}  Be7 {[%clk 0:02:59]} 6. O-O {[%clk 0:02:59]}  O-O {[%clk 0:02:59]} 7. a4 {[%clk 0:03:00]}  c6 {[%clk 0:02:56]} 8. h3 {[%clk 0:03:00]}  h6 {[%clk 0:02:55]} 9. Re1 {[%clk 0:03:00]}  Re8 {[%clk 0:02:54]} 10. b3 {[%clk 0:03:00]}  exd4 {[%clk 0:02:49]} 11. Nxd4 {[%clk 0:03:01]}  Bf8 {[%clk 0:02:46]} 12. Nf3 {[%clk 0:02:54]}  Ne5 {[%clk 0:02:40]} 13. Nxe5 {[%clk 0:02:43]}  dxe5 {[%clk 0:02:40]} 14. Qf3 {[%clk 0:02:43]}  Be6 {[%clk 0:02:39]} 15. Rd1 {[%clk 0:02:43]}  Qc7 {[%clk 0:02:37]} 16. Bxh6 {[%clk 0:02:41]}  Bxc4 {[%clk 0:02:33]} 17. bxc4 {[%clk 0:02:42]}  Qa5 {[%clk 0:02:13]} 18. Bg5 {[%clk 0:02:34]}  Nh7 {[%clk 0:02:13]} 19. Bh4 {[%clk 0:02:34]}  Qc5 {[%clk 0:01:39]} 20. Rd7 {[%clk 0:02:26]}  Qxc4 {[%clk 0:01:39]} 21. Rxb7 {[%clk 0:02:26]}  Bb4 {[%clk 0:01:07]} 22. Nd5 {[%clk 0:02:24]}  Bf8 {[%clk 0:01:00]} 23. Qxf7+ {[%clk 0:02:21]}  Kh8 {[%clk 0:01:00]} 24. Ne3 {[%clk 0:01:54]}  Qxe4 {[%clk 0:00:59]} 25. Bg3 {[%clk 0:01:52]}  Rab8 {[%clk 0:00:44]} 26. Rxb8 {[%clk 0:01:43]}  Rxb8 {[%clk 0:00:44]} 27. Qxa7 {[%clk 0:01:44]}  Rd8 {[%clk 0:00:34]} 28. a5 {[%clk 0:01:40]}  Nf6 {[%clk 0:00:28]} 29. a6 {[%clk 0:01:38]}  Nh5 {[%clk 0:00:25]} 30. Qb6 {[%clk 0:01:34]}  Ra8 {[%clk 0:00:22]} 31. Qb7 {[%clk 0:01:29]}  Re8 {[%clk 0:00:15]} 32. Qf7 {[%clk 0:01:25]}  Nf6 {[%clk 0:00:14]} 33. a7 {[%clk 0:01:19]}  c5 {[%clk 0:00:12]} 34. Qxe8 {[%clk 0:01:19]} 1-0


[Site "https://www.chess.com"]

[Event "Titled Tuesday Blitz January 03 Early 2023"]
[White "Naroditsky, Daniel"]
[Black "Zierk, Steven"]
[WhiteFideId "2026961"]
[BlackFideId "2034255"]
[WhiteElo "2618"]
[BlackElo "2488"]
[Result "1-0"]
[Round "08"]
[TimeControl "180+2"]
[Date "2023.01.03"]
[WhiteClock "0:01:09"]
[BlackClock "0:00:39"]

1. Nf3 {[%clk 0:02:58]}  e6 {[%clk 0:02:59]} 2. d4 {[%clk 0:02:54]}  f5 {[%clk 0:02:59]} 3. Bf4 {[%clk 0:02:50]}  Nf6 {[%clk 0:02:58]} 4. e3 {[%clk 0:02:51]}  Be7 {[%clk 0:02:52]} 5. h3 {[%clk 0:02:50]}  O-O {[%clk 0:02:51]} 6. Be2 {[%clk 0:02:50]}  d6 {[%clk 0:02:51]} 7. c4 {[%clk 0:02:50]}  Nbd7 {[%clk 0:02:48]} 8. Nc3 {[%clk 0:02:50]}  b6 {[%clk 0:02:48]} 9. O-O {[%clk 0:02:49]}  Bb7 {[%clk 0:02:48]} 10. Ng5 {[%clk 0:02:49]}  e5 {[%clk 0:02:36]} 11. Ne6 {[%clk 0:02:49]}  Qe8 {[%clk 0:02:26]} 12. Nxf8 {[%clk 0:02:44]}  Bxf8 {[%clk 0:02:19]} 13. Bh2 {[%clk 0:02:44]}  Qg6 {[%clk 0:02:12]} 14. Bf3 {[%clk 0:02:44]}  e4 {[%clk 0:02:11]} 15. Be2 {[%clk 0:02:45]}  Qf7 {[%clk 0:02:06]} 16. b4 {[%clk 0:02:41]}  g5 {[%clk 0:02:05]} 17. f3 {[%clk 0:02:36]}  Qg6 {[%clk 0:02:03]} 18. fxe4 {[%clk 0:02:32]}  fxe4 {[%clk 0:01:57]} 19. Bg4 {[%clk 0:02:23]}  Nxg4 {[%clk 0:01:50]} 20. Qxg4 {[%clk 0:02:24]}  Nf6 {[%clk 0:01:43]} 21. Qf5 {[%clk 0:02:22]}  Bg7 {[%clk 0:01:37]} 22. c5 {[%clk 0:02:13]}  bxc5 {[%clk 0:01:30]} 23. bxc5 {[%clk 0:02:11]}  Ba6 {[%clk 0:01:30]} 24. Rf2 {[%clk 0:01:59]}  Bd3 {[%clk 0:01:14]} 25. cxd6 {[%clk 0:01:56]}  cxd6 {[%clk 0:01:15]} 26. Bxd6 {[%clk 0:01:56]}  g4 {[%clk 0:01:11]} 27. Nd5 {[%clk 0:01:53]}  Qxf5 {[%clk 0:01:06]} 28. Ne7+ {[%clk 0:01:53]}  Kh8 {[%clk 0:00:58]} 29. Nxf5 {[%clk 0:01:54]}  Nd5 {[%clk 0:00:58]} 30. hxg4 {[%clk 0:01:51]}  Bf6 {[%clk 0:00:53]} 31. g3 {[%clk 0:01:38]}  Rg8 {[%clk 0:00:48]} 32. Rc1 {[%clk 0:01:31]}  Rxg4 {[%clk 0:00:47]} 33. Rc5 {[%clk 0:01:24]}  Nb6 {[%clk 0:00:42]} 34. Nh6 {[%clk 0:01:24]}  Rg6 {[%clk 0:00:38]} 35. Rxf6 {[%clk 0:01:24]}  Rxf6 {[%clk 0:00:38]} 36. Be5 {[%clk 0:01:25]}  Nd7 {[%clk 0:00:39]} 37. Bxf6+ {[%clk 0:01:19]}  Nxf6 {[%clk 0:00:39]} 38. Nf5 {[%clk 0:01:13]}  h5 {[%clk 0:00:39]} 39. d5 {[%clk 0:01:13]}  Kg8 {[%clk 0:00:39]} 40. d6 {[%clk 0:01:10]}  Kf7 {[%clk 0:00:39]} 41. Re5 {[%clk 0:01:09]} 1-0


[Site "https://www.chess.com"]

[Event "Titled Tuesday Blitz January 03 Early 2023"]
[White "Ibarra Jerez, Jose Carlos"]
[Black "Keymer, Vincent"]
[WhiteFideId "2226332"]
[BlackFideId "12940690"]
[WhiteElo "2563"]
[BlackElo "2700"]
[Result "1-0"]
[Round "08"]
[TimeControl "180+2"]
[Date "2023.01.03"]
[WhiteClock "0:00:05"]
[BlackClock "0:00:01"]

1. Nf3 {[%clk 0:03:00]}  c6 {[%clk 0:03:00]} 2. g3 {[%clk 0:02:59]}  d5 {[%clk 0:03:01]} 3. Bg2 {[%clk 0:03:00]}  Bg4 {[%clk 0:03:02]} 4. h3 {[%clk 0:02:59]}  Bh5 {[%clk 0:03:02]} 5. O-O {[%clk 0:02:59]}  Nd7 {[%clk 0:03:02]} 6. b3 {[%clk 0:02:55]}  Ngf6 {[%clk 0:03:00]} 7. c4 {[%clk 0:02:55]}  e6 {[%clk 0:02:59]} 8. Bb2 {[%clk 0:02:55]}  Bd6 {[%clk 0:02:53]} 9. Nc3 {[%clk 0:02:50]}  O-O {[%clk 0:02:52]} 10. Rc1 {[%clk 0:02:49]}  Re8 {[%clk 0:02:51]} 11. Qc2 {[%clk 0:02:44]}  Qb6 {[%clk 0:02:35]} 12. Na4 {[%clk 0:02:39]}  Qd8 {[%clk 0:02:35]} 13. d3 {[%clk 0:02:36]}  Rc8 {[%clk 0:02:22]} 14. Rfe1 {[%clk 0:02:26]}  b5 {[%clk 0:02:17]} 15. Nc3 {[%clk 0:02:15]}  Qb6 {[%clk 0:02:05]} 16. e3 {[%clk 0:01:43]}  bxc4 {[%clk 0:01:23]} 17. bxc4 {[%clk 0:01:41]}  dxc4 {[%clk 0:01:18]} 18. Na4 {[%clk 0:01:41]}  Qa5 {[%clk 0:01:03]} 19. Qxc4 {[%clk 0:01:37]}  Bxf3 {[%clk 0:01:03]} 20. Bxf3 {[%clk 0:01:34]}  Nd5 {[%clk 0:00:57]} 21. d4 {[%clk 0:01:19]}  N7b6 {[%clk 0:00:52]} 22. Nxb6 {[%clk 0:01:17]}  axb6 {[%clk 0:00:53]} 23. e4 {[%clk 0:01:09]}  Ne7 {[%clk 0:00:53]} 24. Qb3 {[%clk 0:01:03]}  Red8 {[%clk 0:00:37]} 25. Red1 {[%clk 0:01:01]}  h6 {[%clk 0:00:33]} 26. Kg2 {[%clk 0:00:59]}  Ra8 {[%clk 0:00:22]} 27. a3 {[%clk 0:00:47]}  Qa4 {[%clk 0:00:20]} 28. Rd3 {[%clk 0:00:45]}  Bc7 {[%clk 0:00:11]} 29. Qxa4 {[%clk 0:00:39]}  Rxa4 {[%clk 0:00:12]} 30. Rb3 {[%clk 0:00:34]}  b5 {[%clk 0:00:11]} 31. e5 {[%clk 0:00:34]}  Ra6 {[%clk 0:00:10]} 32. Rbc3 {[%clk 0:00:16]}  Bb6 {[%clk 0:00:07]} 33. Rxc6 {[%clk 0:00:12]}  Nxc6 {[%clk 0:00:06]} 34. Rxc6 {[%clk 0:00:13]}  Bxd4 {[%clk 0:00:04]} 35. Rxa6 {[%clk 0:00:11]}  Bxb2 {[%clk 0:00:04]} 36. Ra5 {[%clk 0:00:08]}  Rd2 {[%clk 0:00:04]} 37. Kf1 {[%clk 0:00:07]}  g6 {[%clk 0:00:03]} 38. Rxb5 {[%clk 0:00:06]}  Bxa3 {[%clk 0:00:03]} 39. Be2 {[%clk 0:00:06]}  Bb2 {[%clk 0:00:02]} 40. f4 {[%clk 0:00:06]}  Bd4 {[%clk 0:00:02]} 41. Rb3 {[%clk 0:00:06]}  Ra2 {[%clk 0:00:02]} 42. Rd3 {[%clk 0:00:06]}  Bc5 {[%clk 0:00:02]} 43. h4 {[%clk 0:00:07]}  Kg7 {[%clk 0:00:02]} 44. Bf3 {[%clk 0:00:05]}  Bf2 {[%clk 0:00:02]} 45. Be2 {[%clk 0:00:05]}  Bb6 {[%clk 0:00:02]} 46. Rd7 {[%clk 0:00:05]}  Bc5 {[%clk 0:00:02]} 47. Rc7 {[%clk 0:00:04]}  Bd4 {[%clk 0:00:02]} 48. Rd7 {[%clk 0:00:05]}  Be3 {[%clk 0:00:03]} 49. Rd3 {[%clk 0:00:05]}  Bc5 {[%clk 0:00:03]} 50. Rd7 {[%clk 0:00:05]}  g5 {[%clk 0:00:03]} 51. fxg5 {[%clk 0:00:05]}  hxg5 {[%clk 0:00:04]} 52. hxg5 {[%clk 0:00:05]}  Kg6 {[%clk 0:00:05]} 53. Bd3+ {[%clk 0:00:05]}  Kxg5 {[%clk 0:00:04]} 54. Rxf7 {[%clk 0:00:06]}  Kg4 {[%clk 0:00:04]} 55. Bc4 {[%clk 0:00:05]}  Kxg3 {[%clk 0:00:03]} 56. Bxa2 {[%clk 0:00:04]}  Bd4 {[%clk 0:00:02]} 57. Bxe6 {[%clk 0:00:04]}  Bxe5 {[%clk 0:00:02]} 58. Ke2 {[%clk 0:00:05]}  Kh4 {[%clk 0:00:02]} 59. Kf3 {[%clk 0:00:04]}  Bd6 {[%clk 0:00:02]} 60. Rf5 {[%clk 0:00:04]}  Be7 {[%clk 0:00:01]} 61. Bf7 {[%clk 0:00:05]} 1-0


[Site "https://www.chess.com"]

[Event "Titled Tuesday Blitz January 03 Early 2023"]
[White "Boros, Denes"]
[Black "Puranik, Abhimanyu"]
[WhiteFideId "722340"]
[BlackFideId "5061245"]
[WhiteElo "2406"]
[BlackElo "2613"]
[Result "0-1"]
[Round "08"]
[TimeControl "180+2"]
[Date "2023.01.03"]
[WhiteClock "0:00:02"]
[BlackClock "0:00:02"]

1. e4 {[%clk 0:03:00]}  Nc6 {[%clk 0:02:56]} 2. Nf3 {[%clk 0:03:00]}  e5 {[%clk 0:02:56]} 3. Nc3 {[%clk 0:02:55]}  Nf6 {[%clk 0:02:54]} 4. a4 {[%clk 0:02:53]}  Bd6 {[%clk 0:02:48]} 5. Bc4 {[%clk 0:02:52]}  O-O {[%clk 0:02:47]} 6. d3 {[%clk 0:02:52]}  h6 {[%clk 0:02:37]} 7. g4 {[%clk 0:02:47]}  Bc5 {[%clk 0:02:20]} 8. Rg1 {[%clk 0:02:35]}  d6 {[%clk 0:02:19]} 9. g5 {[%clk 0:02:16]}  Ng4 {[%clk 0:02:19]} 10. Rg2 {[%clk 0:02:16]}  h5 {[%clk 0:02:05]} 11. h3 {[%clk 0:02:09]}  Nxf2 {[%clk 0:01:58]} 12. Rxf2 {[%clk 0:02:08]}  Bxf2+ {[%clk 0:01:58]} 13. Kxf2 {[%clk 0:02:09]}  Bxh3 {[%clk 0:01:58]} 14. Qh1 {[%clk 0:01:54]}  Bg4 {[%clk 0:01:56]} 15. Nd5 {[%clk 0:01:45]}  Ne7 {[%clk 0:01:37]} 16. Ne3 {[%clk 0:01:17]}  Qd7 {[%clk 0:01:36]} 17. Bd2 {[%clk 0:01:10]}  g6 {[%clk 0:01:30]} 18. Rg1 {[%clk 0:01:09]}  Bxf3 {[%clk 0:01:27]} 19. Qxf3 {[%clk 0:01:09]}  c6 {[%clk 0:01:23]} 20. Bb3 {[%clk 0:00:58]}  Rac8 {[%clk 0:00:51]} 21. a5 {[%clk 0:00:57]}  d5 {[%clk 0:00:51]} 22. Ke2 {[%clk 0:00:51]}  b6 {[%clk 0:00:39]} 23. Qf6 {[%clk 0:00:45]}  Qe6 {[%clk 0:00:35]} 24. Bb4 {[%clk 0:00:41]}  c5 {[%clk 0:00:31]} 25. Bd2 {[%clk 0:00:32]}  c4 {[%clk 0:00:30]} 26. exd5 {[%clk 0:00:29]}  Nxd5 {[%clk 0:00:28]} 27. Nxd5 {[%clk 0:00:28]}  Qxd5 {[%clk 0:00:23]} 28. Bxc4 {[%clk 0:00:29]}  Rxc4 {[%clk 0:00:24]} 29. dxc4 {[%clk 0:00:30]}  Qxc4+ {[%clk 0:00:24]} 30. Kd1 {[%clk 0:00:30]}  Qd4 {[%clk 0:00:17]} 31. Rf1 {[%clk 0:00:27]}  Qxb2 {[%clk 0:00:17]} 32. Rf3 {[%clk 0:00:25]}  bxa5 {[%clk 0:00:15]} 33. Rb3 {[%clk 0:00:18]}  Qa1+ {[%clk 0:00:14]} 34. Ke2 {[%clk 0:00:17]}  Qd4 {[%clk 0:00:14]} 35. Rd3 {[%clk 0:00:16]}  Qe4+ {[%clk 0:00:13]} 36. Kd1 {[%clk 0:00:13]}  a4 {[%clk 0:00:11]} 37. Bc3 {[%clk 0:00:10]}  Re8 {[%clk 0:00:06]} 38. Kc1 {[%clk 0:00:08]}  a3 {[%clk 0:00:06]} 39. Rd8 {[%clk 0:00:07]}  Qh1+ {[%clk 0:00:06]} 40. Kd2 {[%clk 0:00:06]}  Qg2+ {[%clk 0:00:06]} 41. Kd1 {[%clk 0:00:05]}  Qh1+ {[%clk 0:00:06]} 42. Kd2 {[%clk 0:00:05]}  Qg2+ {[%clk 0:00:05]} 43. Kc1 {[%clk 0:00:05]}  Qh1+ {[%clk 0:00:03]} 44. Rd1 {[%clk 0:00:06]}  Qe4 {[%clk 0:00:04]} 45. Rd3 {[%clk 0:00:04]}  Qh1+ {[%clk 0:00:03]} 46. Kd2 {[%clk 0:00:03]}  Qg2+ {[%clk 0:00:03]} 47. Kc1 {[%clk 0:00:03]}  Qh1+ {[%clk 0:00:04]} 48. Kd2 {[%clk 0:00:03]}  a2 {[%clk 0:00:04]} 49. Bxe5 {[%clk 0:00:03]}  Qg2+ {[%clk 0:00:02]} 50. Kd1 {[%clk 0:00:03]}  Qh1+ {[%clk 0:00:02]} 51. Ke2 {[%clk 0:00:02]}  Qg2+ {[%clk 0:00:02]} 52. Ke3 {[%clk 0:00:02]}  Qg3+ {[%clk 0:00:02]} 0-1


[Site "https://www.chess.com"]